Workbook

Sheet Startseite
J4: Startseite
B5: Vergleichsrechner - Finanzierung einer Investition
D9: Tabellenblätter | M9: Tabellenblatt | N9: 1
G10: Info
G11: =INDEX(Parameter_Intern!C5:D6,Startseite!N9,2) -> In diesem Tabellenblatt werden die Berechnungen für den Finanzierungsvergleich durchgeführt | M11: =+N9/2 -> 0.5 | N11: =+ROUND(N9/2,0) -> 1
M12: =IF(M11=N11,1,2) -> 2
D17: ="Bei einem Klick auf "&H17&" kommen Sie direkt zum entsprechenden Arbeitsblatt" -> Bei einem Klick auf Berechnung kommen Sie direkt zum entsprechenden Arbeitsblatt | H17: =+HYPERLINK(VLOOKUP($N$9,Parameter_Intern!$B$5:$E$30,4,FALSE),VLOOKUP($N$9,Parameter_Intern!$B$5:$E$30,2,FALSE)) -> Berechnung
B39: © 2023 by mediaforwork - ein Unternehmensbereich der Verlag für die Deutsche Wirtschaft AG
B40: Die Vervielfältigung, Verbreitung oder Veräußerung der Daten oder Texte ist unzulässig und
B41: ausdrücklich nur mit Genehmigung des Verlags gestattet.

Sheet Berechnung
J2: Berechnung
B3: Vergleichsrechner - Finanzierung einer Investition
C5: Allgemeine Eingaben
D7: Sparzins | G7: 4.00%
D8: Durchschnittlicher Kreditzins | G8: 10.00%
C11: Barkauf
D13: Listenpreis des Fahrzeugs in Euro | G13: 50,000.00
D14: ./. Nachlass beim Händler in Prozent | G14: 25.00% | H14: =G$13*G14 -> 12,500.00
D16: ="Gegenwartswert bei Barkauf in Euro" -> Gegenwartswert bei Barkauf in Euro | H16: =G$13-H14 -> 37,500.00 | N16: 2
C19: Leasing
D21: Sonderzahlung in Euro | G21: 8,000.00 | H21: Euro
D22: Laufzeit in Monaten | G22: 36 | H22: Monate
D23: Monatliche Rate in Euro | G23: 650.00 | H23: Euro
D24: Restwert in Euro | G24: 22,000.00 | H24: Euro
D26: effektiver Jahreszins (Kredit) | G26: =+G8*100 -> 10.00 | H26: Prozent
D27: Sparzins (Anlage) | G27: =+G7*100 -> 4.00 | H27: Prozent
D28: Mischzins aus Kredit- u. Anlagezins (Ø) | G28: =IF($G27>0,IF($G26>0,($G27+$G26)/2,$G27),$G26) -> 7.00 | H28: =IF(G28<>" ","Prozent"," ") -> Prozent
D29: Abzinsungsfaktor für Leasing | G29: =IF(G22>0,IF(G23>0,IF(G28>0,((1/((1+($G$28)/100)^($G$22/12))*((1+($G$28)/100)^($G$22/12)-1)/((1+($G$28)/100)^(1/12)-1))*((1+($G$28)/100)^(1/12))),"Zins!"),"Rate!"),"Laufzeit!") -> 32.67351456 | H29: (vorschüssig)
D30: Abzinsungsfaktor für Restwert | G30: =IF(G24>0,(1/((1+($G$28)/100))^($G$22/12)),"kein Restwert!") -> 0.8162978769
D31: Barwert der Leasingraten (Monatl. Rate x Faktor für Leasing) | G31: =IF(G29<>"Laufzeit!",IF(G29<>"Rate!",IF(G29<>"Zins!",$G$29*G23," ")," ")," ") -> 21237.78446 | H31: Euro
D32: + abgezinster Restwert (Restwert x Faktor für Restwert) | G32: =IF(G30<>"kein Restwert!",G24*$G$30," ") -> 17958.55329 | H32: =IF(G32<>" ","Euro"," ") -> Euro
D33: + Sonderzahlung von | G33: =G21 -> 8000 | H33: Euro
D35: = Gegenwartswert bei Leasing | H35: =IF(ISERROR(ROUND(IF(G31<>" ",IF(G32<>" ",IF(G24>0,IF(G33<>" ",G31+G33+G32," "),IF(G33<>" ",G33+G31," "))," ")," "),2)),"",ROUND(IF(G31<>" ",IF(G32<>" ",IF(G24>0,IF(G33<>" ",G31+G33+G32," "),IF(G33<>" ",G33+G31," "))," ")," "),2)) -> 47,196.34
C38: Kauf über Kredit
D41: =+IF(N41=1,"Finanzierung der Anzahlung über Kredit","Keine Finanzierung der Anzahlung über Kredit") -> Finanzierung der Anzahlung über Kredit | N41: 1
D46: =D13 -> Listenpreis des Fahrzeugs in Euro | G46: =G13 -> 50,000.00
D48: ./. Nachlass beim Händler in % | G48: 4.00% | H48: =G$13*G48 -> 2,000.00 | N48: =+ROUND(G46*G49,2) -> 5000
D49: =IF(N41=1,"./. Anzahlung (in % v. Listenpreis) wird finanziert","./. Anzahlung (in % v. Listenpreis) wird nicht finanziert") -> ./. Anzahlung (in % v. Listenpreis) wird finanziert | G49: 10.00% | H49: =+ROUND(G46*G49,2) -> 5,000.00
D51: = zu finanzierender Gesamtbetrag | H51: =+IF(N41=1,G46-H48,G46-H48-N48) -> 48,000.00
G53: Hauptkredit | H53: =+IF(N41=1,"Für Anzahlung","") -> Für Anzahlung
D54: Betrag in Euro | G54: =+G46-H48-N48 -> 43,000.00 | H54: =IF(N41=1,H49,0) -> 5,000.00
D55: Laufzeit in Monaten | G55: 36 | H55: =+IF(N41=1,G55,0) -> 36
D56: Effektiver Jahrenszins in % | G56: 5.00% | H56: =+IF(N41=1,G56,0) -> 5.00%
D57: Monatliche Rate in Euro | G57: =IF(ISERROR((G54)/((1/(((1+$G$56))^(($G$55)/12)))*((((1+$G$56))^(($G$55)/12))-1)/((((1+$G$56))^(1/12))-1))),0,(G54)/((1/(((1+$G$56))^(($G$55)/12)))*((((1+$G$56))^(($G$55)/12))-1)/((((1+$G$56))^(1/12))-1))) -> 1,286.61 | H57: =IF(N41<>1,0,IF($H$49>0,IF($H$56>0,($H$49)/((1/(((1+$H$56))^($H$55/12)))*((((1+$H$56))^($H$55/12))-1)/((((1+$H$56))^(1/12))-1))," "),0)) -> 149.61
D59: Sparzins (Anlage) | G59: =G7 -> 4.00% | H59: =G7 -> 4.00%
D60: Diskontierungszinssatz | G60: =($G59+$G56)/2 -> 4.50% | H60: =(SUM(H59,H56))/2 -> 4.50%
D61: Abzinsungsfaktor für Ø-Monatsrate der Finanzierung | G61: =(1/(((1+$G$60))^($G$55/12)))*(((1+$G$60))^(($G$55/12))-1)/((((1+$G$60))^(1/12))-1) -> 33.66253388 | H61: =IF($H$55>0,IF($H$49>0,IF(H60=" ",0,(1/(((1+H60))^($H$55/12)))*((((1+H60))^($H$55/12))-1)/((((1+H60))^(1/12))-1)),0),0) -> 33.66253388
D62: Barwert der Finanzierung (Monatl. Rate x Faktor für Finanzierung) | G62: =$G$57*$G$61 -> 43310.40817 | H62: =H61*H57 -> 5036.093974
D63: Summe Barwerte | G63: =IF(G62<>" ",IF(H62<>" ",G62+H62," ")," ") -> 48346.50215
D64: + eingesetztes Eigenkapital | G64: =+IF(N41=2,N48,0) -> 0
D66: = Gegenwartswert bei Kreditkauf | H66: =IF(ISERROR(IF(G62<>" ",IF(G62<>"Rate!",IF(G62<>"Zins!",IF(G49>0,IF(H62<>" ",G62+H62+G64," "),G62+G64)," ")," ")," ")),"",IF(G62<>" ",IF(G62<>"Rate!",IF(G62<>"Zins!",IF(G49>0,IF(H62<>" ",G62+H62+G64," "),G62+G64)," ")," ")," ")) -> 48,346.50
C69: Zusammenfassung und Ergebnisse
D71: Gegenwartswert bei Barkauf | G71: =+H16 -> 37,500.00 | H71: =+IF(G71=MAX($G$71:$G$73),"Teuerste Finanzierung",IF(G71=MIN($G$71:$G$73),"Günstigste Finanzierung","")) -> Günstigste Finanzierung
D72: Gegenwartswert bei Leasing | G72: =+H35 -> 47,196.34 | H72: =+IF(G72=MAX($G$71:$G$73),"Teuerste Finanzierung",IF(G72=MIN($G$71:$G$73),"Günstigste Finanzierung","")) -> 
D73: Gegenwartswert bei Kreditkauf | G73: =+H66 -> 48,346.50 | H73: =+IF(G73=MAX($G$71:$G$73),"Teuerste Finanzierung",IF(G73=MIN($G$71:$G$73),"Günstigste Finanzierung","")) -> Teuerste Finanzierung
D77: << Startseite | H77: Hilfe?
B79: © 2023 by mediaforwork - ein Unternehmensbereich der Verlag für die Deutsche Wirtschaft AG
B80: Die Vervielfältigung, Verbreitung oder Veräußerung der Daten oder Texte ist unzulässig und
B81: ausdrücklich nur mit Genehmigung des Verlags gestattet.

Sheet Hilfe
F2: Hilfe
B3: Vergleichsrechner - Finanzierung einer Investition - Hilfe
D5: Allgemeine Hinweise
D9: Hinweise zu den Eingaben
B15: << Startseite
B17: © 2023 by mediaforwork - ein Unternehmensbereich der Verlag für die Deutsche Wirtschaft AG
B18: Die Vervielfältigung, Verbreitung oder Veräußerung der Daten oder Texte ist unzulässig und
B19: ausdrücklich nur mit Genehmigung des Verlags gestattet.

Sheet Parameter_Intern (hidden)
B4: Nr | C4: Tabellenblatt | D4: Hinweise | E4: Hyperlink
B5: 1 | C5: Berechnung | D5: In diesem Tabellenblatt werden die Berechnungen für den Finanzierungsvergleich durchgeführt | E5: #Berechnung!B3
B6: 2 | C6: Hilfe | D6: Hier finden Sie nähere Informationen über die Anwendung. | E6: #Hilfe!B3
B33: © 2011 by BWRmed!a - ein Unternehmensbereich der Verlag für die Deutsche Wirtschaft AG
B34: Die Vervielfältigung, Verbreitung oder Veräußerung der Daten oder Texte ist unzulässig und
B35: ausdrücklich nur mit Genehmigung des Verlags gestattet.
